[Event "Titled Tuesday Blitz August 1 Early 2023"]
[White "Mikhaylova, Irina"]
[Black "sterpfi"]
[WhiteFideId "4109040"]
[WhiteElo "2246"]
[BlackElo "2159"]
[Result "0-1"]
[Round "5"]
[TimeControl "180+1"]
[Date "2023.08.01"]
[WhiteClock "0:00:22"]
[BlackClock "0:00:19"]
[Board "226"]

1. Nf3 {[%clk 0:02:55]}  d5 {[%clk 0:02:58]} 2. c4 {[%clk 0:02:55]}  e6 {[%clk 0:02:59]} 3. g3 {[%clk 0:02:54]}  Nf6 {[%clk 0:02:57]} 4. Bg2 {[%clk 0:02:54]}  c5 {[%clk 0:02:57]} 5. cxd5 {[%clk 0:02:53]}  exd5 {[%clk 0:02:57]} 6. d4 {[%clk 0:02:54]}  Nc6 {[%clk 0:02:50]} 7. O-O {[%clk 0:02:54]}  Be7 {[%clk 0:02:50]} 8. Nc3 {[%clk 0:02:52]}  O-O {[%clk 0:02:50]} 9. Bf4 {[%clk 0:02:52]}  Be6 {[%clk 0:02:29]} 10. Rc1 {[%clk 0:02:50]}  Rc8 {[%clk 0:02:29]} 11. dxc5 {[%clk 0:02:27]}  Bxc5 {[%clk 0:02:28]} 12. Bg5 {[%clk 0:02:15]}  Be7 {[%clk 0:02:21]} 13. Nd4 {[%clk 0:02:08]}  h6 {[%clk 0:02:14]} 14. Be3 {[%clk 0:01:38]}  Ne5 {[%clk 0:02:08]} 15. Nxe6 {[%clk 0:01:21]}  fxe6 {[%clk 0:02:09]} 16. Bxa7 {[%clk 0:01:21]}  Nc4 {[%clk 0:01:57]} 17. b3 {[%clk 0:01:07]}  Ne5 {[%clk 0:01:36]} 18. Bd4 {[%clk 0:01:06]}  Nc6 {[%clk 0:01:34]} 19. Nb5 {[%clk 0:00:57]}  Qa5 {[%clk 0:01:25]} 20. a4 {[%clk 0:00:56]}  Qb4 {[%clk 0:01:17]} 21. Bc3 {[%clk 0:00:44]}  Qg4 {[%clk 0:01:16]} 22. e3 {[%clk 0:00:33]}  Qg6 {[%clk 0:01:14]} 23. Qc2 {[%clk 0:00:25]}  Qh5 {[%clk 0:01:11]} 24. Qd1 {[%clk 0:00:25]}  Qg6 {[%clk 0:01:11]} 25. Qc2 {[%clk 0:00:25]}  Qh5 {[%clk 0:01:11]} 26. Qd1 {[%clk 0:00:25]}  Qg5 {[%clk 0:01:05]} 27. Nd4 {[%clk 0:00:24]}  Nxd4 {[%clk 0:00:54]} 28. Bxd4 {[%clk 0:00:23]}  Ne4 {[%clk 0:00:53]} 29. f4 {[%clk 0:00:20]}  Qf5 {[%clk 0:00:49]} 30. Qd3 {[%clk 0:00:19]}  Nxg3 {[%clk 0:00:44]} 31. Qxf5 {[%clk 0:00:20]}  Nxf5 {[%clk 0:00:45]} 32. Bb6 {[%clk 0:00:17]}  Rc6 {[%clk 0:00:40]} 33. e4 {[%clk 0:00:17]}  Rxb6 {[%clk 0:00:38]} 34. exf5 {[%clk 0:00:16]}  Rxf5 {[%clk 0:00:37]} 35. Bh3 {[%clk 0:00:17]}  Rf6 {[%clk 0:00:36]} 36. Rce1 {[%clk 0:00:17]}  Bc5+ {[%clk 0:00:35]} 37. Kg2 {[%clk 0:00:17]}  Rxb3 {[%clk 0:00:34]} 38. Rxe6 {[%clk 0:00:16]}  Rb2+ {[%clk 0:00:30]} 39. Kf3 {[%clk 0:00:16]}  Rb3+ {[%clk 0:00:28]} 40. Kg2 {[%clk 0:00:17]}  Rb2+ {[%clk 0:00:28]} 41. Kf3 {[%clk 0:00:17]}  Rxe6 {[%clk 0:00:27]} 42. Bxe6+ {[%clk 0:00:17]}  Kf8 {[%clk 0:00:27]} 43. Bxd5 {[%clk 0:00:17]}  Rxh2 {[%clk 0:00:26]} 44. Ke4 {[%clk 0:00:17]}  Bd6 {[%clk 0:00:26]} 45. f5 {[%clk 0:00:17]}  Rh4+ {[%clk 0:00:25]} 46. Kd3 {[%clk 0:00:17]}  Rxa4 {[%clk 0:00:25]} 47. Be6 {[%clk 0:00:17]}  b5 {[%clk 0:00:24]} 48. Rb1 {[%clk 0:00:17]}  b4 {[%clk 0:00:24]} 49. Kc4 {[%clk 0:00:17]}  Ra3 {[%clk 0:00:24]} 50. Kd5 {[%clk 0:00:18]}  Be7 {[%clk 0:00:25]} 51. Kc6 {[%clk 0:00:17]}  Rc3+ {[%clk 0:00:24]} 52. Kd7 {[%clk 0:00:17]}  Rd3+ {[%clk 0:00:24]} 53. Kc6 {[%clk 0:00:17]}  Rd6+ {[%clk 0:00:22]} 54. Kb5 {[%clk 0:00:18]}  Rd4 {[%clk 0:00:21]} 55. Kc6 {[%clk 0:00:17]}  h5 {[%clk 0:00:20]} 56. Ra1 {[%clk 0:00:17]}  h4 {[%clk 0:00:18]} 57. Ra8+ {[%clk 0:00:17]}  Rd8 {[%clk 0:00:18]} 58. Ra1 {[%clk 0:00:15]}  h3 {[%clk 0:00:16]} 59. Rh1 {[%clk 0:00:15]}  Rd3 {[%clk 0:00:16]} 60. f6 {[%clk 0:00:16]}  Bxf6 {[%clk 0:00:16]} 61. Rxh3 {[%clk 0:00:16]}  Rxh3 {[%clk 0:00:15]} 62. Bxh3 {[%clk 0:00:16]}  b3 {[%clk 0:00:16]} 63. Bf5 {[%clk 0:00:17]}  b2 {[%clk 0:00:15]} 64. Kd5 {[%clk 0:00:17]}  g5 {[%clk 0:00:16]} 65. Bb1 {[%clk 0:00:17]}  Kg7 {[%clk 0:00:16]} 66. Ke4 {[%clk 0:00:18]}  Be7 {[%clk 0:00:17]} 67. Kf3 {[%clk 0:00:19]}  Kf6 {[%clk 0:00:17]} 68. Kg4 {[%clk 0:00:19]}  Ke5 {[%clk 0:00:18]} 69. Kf3 {[%clk 0:00:20]}  Kd4 {[%clk 0:00:19]} 70. Ke2 {[%clk 0:00:20]}  Kc3 {[%clk 0:00:19]} 71. Kd1 {[%clk 0:00:20]}  g4 {[%clk 0:00:20]} 72. Be4 {[%clk 0:00:21]}  g3 {[%clk 0:00:20]} 73. Bb1 {[%clk 0:00:21]}  g2 {[%clk 0:00:20]} 74. Ke2 {[%clk 0:00:22]}  g1=Q {[%clk 0:00:19]} 0-1


[Site "https://www.chess.com"]

[Event "Titled Tuesday Blitz August 1 Early 2023"]
[White "Kuchava, Ana"]
[Black "Mayaud, Raphael"]
[WhiteFideId "13605348"]
[BlackFideId "627151"]
[WhiteElo "2191"]
[BlackElo "2353"]
[Result "0-1"]
[Round "5"]
[TimeControl "180+1"]
[Date "2023.08.01"]
[WhiteClock "0:00:00"]
[BlackClock "0:00:26"]
[Board "231"]

1. d4 {[%clk 0:03:00]}  Nf6 {[%clk 0:02:59]} 2. Nf3 {[%clk 0:02:52]}  d5 {[%clk 0:02:58]} 3. c4 {[%clk 0:02:51]}  c6 {[%clk 0:02:57]} 4. Qb3 {[%clk 0:02:49]}  dxc4 {[%clk 0:02:54]} 5. Qxc4 {[%clk 0:02:48]}  b5 {[%clk 0:02:48]} 6. Qc2 {[%clk 0:02:46]}  Bb7 {[%clk 0:02:48]} 7. Bf4 {[%clk 0:02:37]}  e6 {[%clk 0:02:45]} 8. e3 {[%clk 0:02:30]}  Nbd7 {[%clk 0:02:45]} 9. Bd3 {[%clk 0:02:25]}  Rc8 {[%clk 0:02:45]} 10. O-O {[%clk 0:02:23]}  Be7 {[%clk 0:02:41]} 11. a4 {[%clk 0:02:19]}  a6 {[%clk 0:02:40]} 12. axb5 {[%clk 0:02:19]}  cxb5 {[%clk 0:02:39]} 13. Qe2 {[%clk 0:02:17]}  O-O {[%clk 0:02:34]} 14. Nbd2 {[%clk 0:02:14]}  Qb6 {[%clk 0:02:22]} 15. Rfc1 {[%clk 0:02:07]}  h6 {[%clk 0:02:20]} 16. h3 {[%clk 0:02:07]}  Rxc1+ {[%clk 0:02:16]} 17. Rxc1 {[%clk 0:02:06]}  Rc8 {[%clk 0:02:17]} 18. Qd1 {[%clk 0:02:03]}  Rxc1 {[%clk 0:02:15]} 19. Qxc1 {[%clk 0:02:04]}  Qc6 {[%clk 0:02:15]} 20. Qxc6 {[%clk 0:02:00]}  Bxc6 {[%clk 0:02:15]} 21. Ne5 {[%clk 0:01:59]}  Nxe5 {[%clk 0:02:14]} 22. Bxe5 {[%clk 0:02:00]}  Nd5 {[%clk 0:02:07]} 23. e4 {[%clk 0:01:54]}  Nb4 {[%clk 0:02:07]} 24. Be2 {[%clk 0:00:54]}  f6 {[%clk 0:01:43]} 25. Bc7 {[%clk 0:00:53]}  Kf7 {[%clk 0:01:36]} 26. f3 {[%clk 0:00:52]}  Ke8 {[%clk 0:01:35]} 27. Kf2 {[%clk 0:00:48]}  Kd7 {[%clk 0:01:35]} 28. Bb6 {[%clk 0:00:47]}  Bb7 {[%clk 0:01:26]} 29. Nb3 {[%clk 0:00:35]}  Kc6 {[%clk 0:01:15]} 30. Bc5 {[%clk 0:00:33]}  Bxc5 {[%clk 0:01:06]} 31. Nxc5 {[%clk 0:00:34]}  Bc8 {[%clk 0:01:07]} 32. Nd3 {[%clk 0:00:22]}  Nc2 {[%clk 0:01:04]} 33. Nf4 {[%clk 0:00:10]}  Nxd4 {[%clk 0:01:00]} 34. Nh5 {[%clk 0:00:10]}  a5 {[%clk 0:00:54]} 35. Nxg7 {[%clk 0:00:09]}  a4 {[%clk 0:00:54]} 36. Ke3 {[%clk 0:00:08]}  e5 {[%clk 0:00:52]} 37. Ne8 {[%clk 0:00:05]}  f5 {[%clk 0:00:38]} 38. Bd1 {[%clk 0:00:04]}  f4+ {[%clk 0:00:37]} 39. Kd2 {[%clk 0:00:03]}  Kc5 {[%clk 0:00:28]} 40. Nf6 {[%clk 0:00:03]}  Be6 {[%clk 0:00:27]} 41. Nh5 {[%clk 0:00:01]}  b4 {[%clk 0:00:27]} 42. Ng7 {[%clk 0:00:00]}  a3 {[%clk 0:00:26]} 0-1


[Site "https://www.chess.com"]

[Event "Titled Tuesday Blitz August 1 Early 2023"]
[White "Valle Maytin, Luis Enrique"]
[Black "zano2023"]
[WhiteFideId "3503666"]
[WhiteElo "2316"]
[BlackElo "2139"]
[Result "1-0"]
[Round "5"]
[TimeControl "180+1"]
[Date "2023.08.01"]
[WhiteClock "0:00:16"]
[BlackClock "0:00:35"]
[Board "232"]

1. d4 {[%clk 0:03:00]}  e5 {[%clk 0:02:59]} 2. dxe5 {[%clk 0:03:00]}  d6 {[%clk 0:03:00]} 3. exd6 {[%clk 0:02:58]}  Bxd6 {[%clk 0:03:00]} 4. g3 {[%clk 0:02:58]}  Nf6 {[%clk 0:02:57]} 5. Bg2 {[%clk 0:02:58]}  Nc6 {[%clk 0:02:56]} 6. Nf3 {[%clk 0:02:58]}  Bg4 {[%clk 0:02:56]} 7. c3 {[%clk 0:02:48]}  Qe7 {[%clk 0:02:56]} 8. O-O {[%clk 0:02:46]}  O-O-O {[%clk 0:02:55]} 9. Qc2 {[%clk 0:02:45]}  Bc5 {[%clk 0:02:48]} 10. Bg5 {[%clk 0:02:34]}  Rhe8 {[%clk 0:02:45]} 11. e3 {[%clk 0:02:29]}  h6 {[%clk 0:02:40]} 12. Bxf6 {[%clk 0:02:28]}  Qxf6 {[%clk 0:02:40]} 13. Nd4 {[%clk 0:02:28]}  Ne5 {[%clk 0:02:29]} 14. Nd2 {[%clk 0:02:27]}  Bb6 {[%clk 0:02:15]} 15. a4 {[%clk 0:02:08]}  Bxd4 {[%clk 0:01:58]} 16. cxd4 {[%clk 0:02:06]}  Nf3+ {[%clk 0:01:57]} 17. Nxf3 {[%clk 0:02:05]}  Bxf3 {[%clk 0:01:57]} 18. Rfc1 {[%clk 0:02:02]}  c6 {[%clk 0:01:57]} 19. a5 {[%clk 0:01:55]}  Rd6 {[%clk 0:01:44]} 20. a6 {[%clk 0:01:53]}  b6 {[%clk 0:01:44]} 21. Ra3 {[%clk 0:01:43]}  Bxg2 {[%clk 0:01:43]} 22. Kxg2 {[%clk 0:01:41]}  Kb8 {[%clk 0:01:40]} 23. Rc3 {[%clk 0:01:40]}  Rc8 {[%clk 0:01:39]} 24. b4 {[%clk 0:01:40]}  Qe6 {[%clk 0:01:34]} 25. Kg1 {[%clk 0:01:28]}  Qd5 {[%clk 0:01:28]} 26. Qb3 {[%clk 0:01:26]}  Qxb3 {[%clk 0:01:25]} 27. Rxb3 {[%clk 0:01:26]}  Kc7 {[%clk 0:01:22]} 28. Kg2 {[%clk 0:01:21]}  Kd7 {[%clk 0:01:22]} 29. f4 {[%clk 0:01:20]}  Re8 {[%clk 0:01:22]} 30. Kf3 {[%clk 0:01:20]}  f5 {[%clk 0:01:23]} 31. Rbc3 {[%clk 0:01:17]}  Re4 {[%clk 0:01:22]} 32. b5 {[%clk 0:01:14]}  cxb5 {[%clk 0:01:14]} 33. Rc7+ {[%clk 0:01:15]}  Ke6 {[%clk 0:01:14]} 34. Rxa7 {[%clk 0:01:13]}  Kd5 {[%clk 0:01:05]} 35. Rxg7 {[%clk 0:01:01]}  Re8 {[%clk 0:01:04]} 36. a7 {[%clk 0:01:00]}  Ra8 {[%clk 0:01:03]} 37. Rf7 {[%clk 0:00:55]}  Ke6 {[%clk 0:01:02]} 38. Rh7 {[%clk 0:00:56]}  Kd5 {[%clk 0:01:01]} 39. Rf7 {[%clk 0:00:32]}  Ke6 {[%clk 0:01:01]} 40. Rfc7 {[%clk 0:00:32]}  b4 {[%clk 0:00:56]} 41. Rb1 {[%clk 0:00:31]}  Rd7 {[%clk 0:00:51]} 42. Rxd7 {[%clk 0:00:29]}  Kxd7 {[%clk 0:00:52]} 43. Rxb4 {[%clk 0:00:29]}  Kc6 {[%clk 0:00:47]} 44. Ra4 {[%clk 0:00:27]}  b5 {[%clk 0:00:47]} 45. Ra6+ {[%clk 0:00:20]}  Kd5 {[%clk 0:00:43]} 46. Ke2 {[%clk 0:00:18]}  Kc4 {[%clk 0:00:42]} 47. Kd2 {[%clk 0:00:18]}  Kb3 {[%clk 0:00:42]} 48. d5 {[%clk 0:00:16]}  b4 {[%clk 0:00:42]} 49. d6 {[%clk 0:00:16]}  Kb2 {[%clk 0:00:42]} 50. d7 {[%clk 0:00:16]}  b3 {[%clk 0:00:42]} 51. Rd6 {[%clk 0:00:14]}  Rd8 {[%clk 0:00:41]} 52. a8=Q {[%clk 0:00:14]}  Rxa8 {[%clk 0:00:40]} 53. d8=Q {[%clk 0:00:15]}  Rxd8 {[%clk 0:00:35]} 54. Rxd8 {[%clk 0:00:16]} 1-0


[Site "https://www.chess.com"]

[Event "Titled Tuesday Blitz August 1 Early 2023"]
[White "Goughfather"]
[Black "Amorim, Daniel Madson De Medeiro"]
[BlackFideId "2124912"]
[WhiteElo "2090"]
[BlackElo "2311"]
[Result "1-0"]
[Round "5"]
[TimeControl "180+1"]
[Date "2023.08.01"]
[WhiteClock "0:00:09"]
[BlackClock "0:00:27"]
[Board "233"]

1. d4 {[%clk 0:02:59]}  Nf6 {[%clk 0:02:57]} 2. Nc3 {[%clk 0:02:58]}  d5 {[%clk 0:02:55]} 3. Bf4 {[%clk 0:02:57]}  e6 {[%clk 0:02:55]} 4. Nb5 {[%clk 0:02:56]}  Na6 {[%clk 0:02:54]} 5. e3 {[%clk 0:02:55]}  c6 {[%clk 0:02:51]} 6. Nc3 {[%clk 0:02:54]}  Nc7 {[%clk 0:02:51]} 7. Nf3 {[%clk 0:02:21]}  Bd6 {[%clk 0:02:51]} 8. Ne5 {[%clk 0:02:12]}  O-O {[%clk 0:02:49]} 9. Bd3 {[%clk 0:02:04]}  b6 {[%clk 0:02:48]} 10. Nxc6 {[%clk 0:01:38]}  Qd7 {[%clk 0:02:48]} 11. Ne5 {[%clk 0:01:32]}  Qe7 {[%clk 0:02:49]} 12. Qf3 {[%clk 0:01:23]}  Ba6 {[%clk 0:02:44]} 13. O-O {[%clk 0:01:15]}  Rac8 {[%clk 0:02:39]} 14. Nc6 {[%clk 0:01:10]}  Qd7 {[%clk 0:02:35]} 15. Nxa7 {[%clk 0:01:00]}  Ra8 {[%clk 0:02:34]} 16. Bxa6 {[%clk 0:00:54]}  Nxa6 {[%clk 0:02:25]} 17. Nab5 {[%clk 0:00:42]}  Bb8 {[%clk 0:02:25]} 18. a3 {[%clk 0:00:35]}  Rc8 {[%clk 0:02:22]} 19. Kh1 {[%clk 0:00:30]}  Rc4 {[%clk 0:02:19]} 20. g4 {[%clk 0:00:27]}  Bxf4 {[%clk 0:02:16]} 21. Qxf4 {[%clk 0:00:26]}  Rac8 {[%clk 0:02:13]} 22. Rg1 {[%clk 0:00:26]}  Nc7 {[%clk 0:02:10]} 23. Nd6 {[%clk 0:00:20]}  Rxc3 {[%clk 0:02:04]} 24. Nxc8 {[%clk 0:00:16]}  Rxc2 {[%clk 0:02:01]} 25. Nxb6 {[%clk 0:00:15]}  Qc6 {[%clk 0:01:59]} 26. Nc8 {[%clk 0:00:15]}  Nce8 {[%clk 0:01:56]} 27. Ne7+ {[%clk 0:00:14]}  Kf8 {[%clk 0:01:55]} 28. Nxc6 {[%clk 0:00:15]}  Rxc6 {[%clk 0:01:55]} 29. Rac1 {[%clk 0:00:15]}  Rd6 {[%clk 0:01:53]} 30. Rc8 {[%clk 0:00:14]}  Rd7 {[%clk 0:01:53]} 31. Qb8 {[%clk 0:00:13]}  h6 {[%clk 0:01:51]} 32. h4 {[%clk 0:00:13]}  g5 {[%clk 0:01:51]} 33. hxg5 {[%clk 0:00:13]}  hxg5 {[%clk 0:01:52]} 34. Rg2 {[%clk 0:00:13]}  Re7 {[%clk 0:01:48]} 35. Rh2 {[%clk 0:00:13]}  Kg7 {[%clk 0:01:48]} 36. Qe5 {[%clk 0:00:11]}  Kg6 {[%clk 0:01:44]} 37. f4 {[%clk 0:00:11]}  Nh7 {[%clk 0:01:28]} 38. fxg5 {[%clk 0:00:10]}  Nxg5 {[%clk 0:01:23]} 39. Qf4 {[%clk 0:00:08]}  Nf6 {[%clk 0:01:14]} 40. Rh5 {[%clk 0:00:07]}  Nxh5 {[%clk 0:00:31]} 41. gxh5+ {[%clk 0:00:08]}  Kh6 {[%clk 0:00:27]} 42. Rh8+ {[%clk 0:00:08]}  Kg7 {[%clk 0:00:27]} 43. Qxg5+ {[%clk 0:00:07]}  Kxh8 {[%clk 0:00:28]} 44. Qxe7 {[%clk 0:00:07]}  Kg7 {[%clk 0:00:29]} 45. Qg5+ {[%clk 0:00:07]}  Kh7 {[%clk 0:00:29]} 46. Qf6 {[%clk 0:00:08]}  Kg8 {[%clk 0:00:29]} 47. h6 {[%clk 0:00:08]}  Kf8 {[%clk 0:00:29]} 48. Qg7+ {[%clk 0:00:08]}  Ke7 {[%clk 0:00:27]} 49. h7 {[%clk 0:00:09]} 1-0


[Site "https://www.chess.com"]

[Event "Titled Tuesday Blitz August 1 Early 2023"]
[White "Navyblue1"]
[Black "Clawitter, Craig"]
[BlackFideId "2023105"]
[WhiteElo "1938"]
[BlackElo "2248"]
[Result "0-1"]
[Round "5"]
[TimeControl "180+1"]
[Date "2023.08.01"]
[WhiteClock "0:00:00"]
[BlackClock "0:00:14"]
[Board "237"]

1. d4 {[%clk 0:03:00]}  e6 {[%clk 0:03:00]} 2. c4 {[%clk 0:03:00]}  Nf6 {[%clk 0:03:00]} 3. Nc3 {[%clk 0:02:59]}  d5 {[%clk 0:03:00]} 4. cxd5 {[%clk 0:02:59]}  exd5 {[%clk 0:03:01]} 5. Bg5 {[%clk 0:02:54]}  c6 {[%clk 0:03:01]} 6. Qc2 {[%clk 0:02:54]}  Be7 {[%clk 0:03:00]} 7. e3 {[%clk 0:02:54]}  Nbd7 {[%clk 0:02:56]} 8. Bd3 {[%clk 0:02:52]}  O-O {[%clk 0:02:57]} 9. Nge2 {[%clk 0:02:52]}  Re8 {[%clk 0:02:57]} 10. O-O {[%clk 0:02:52]}  Nf8 {[%clk 0:02:58]} 11. a3 {[%clk 0:02:47]}  a5 {[%clk 0:02:39]} 12. Rab1 {[%clk 0:02:40]}  g6 {[%clk 0:02:39]} 13. b4 {[%clk 0:02:19]}  Ne6 {[%clk 0:02:33]} 14. Bh4 {[%clk 0:02:10]}  Ng7 {[%clk 0:02:14]} 15. Rfe1 {[%clk 0:01:17]}  Bd6 {[%clk 0:02:04]} 16. Bg3 {[%clk 0:01:04]}  Nf5 {[%clk 0:01:48]} 17. Bxd6 {[%clk 0:01:03]}  Nxd6 {[%clk 0:01:48]} 18. Ng3 {[%clk 0:00:55]}  axb4 {[%clk 0:01:41]} 19. axb4 {[%clk 0:00:52]}  b5 {[%clk 0:01:41]} 20. Ra1 {[%clk 0:00:40]}  Bd7 {[%clk 0:01:26]} 21. h3 {[%clk 0:00:25]}  Nc4 {[%clk 0:01:25]} 22. Bxc4 {[%clk 0:00:16]}  bxc4 {[%clk 0:01:21]} 23. Qb2 {[%clk 0:00:16]}  Qb6 {[%clk 0:01:17]} 24. Rxa8 {[%clk 0:00:14]}  Rxa8 {[%clk 0:01:16]} 25. Rb1 {[%clk 0:00:14]}  h5 {[%clk 0:01:11]} 26. f3 {[%clk 0:00:11]}  h4 {[%clk 0:01:09]} 27. Nge2 {[%clk 0:00:10]}  Re8 {[%clk 0:01:02]} 28. Kf2 {[%clk 0:00:10]}  Nh5 {[%clk 0:00:57]} 29. Na4 {[%clk 0:00:07]}  Qd8 {[%clk 0:00:50]} 30. Nc5 {[%clk 0:00:07]}  Bf5 {[%clk 0:00:50]} 31. Re1 {[%clk 0:00:06]}  Qg5 {[%clk 0:00:45]} 32. Qc3 {[%clk 0:00:06]}  Bd3 {[%clk 0:00:34]} 33. Nc1 {[%clk 0:00:03]}  Qg3+ {[%clk 0:00:29]} 34. Kg1 {[%clk 0:00:03]}  Nf4 {[%clk 0:00:26]} 35. Qd2 {[%clk 0:00:02]}  Nxh3+ {[%clk 0:00:20]} 36. Kh1 {[%clk 0:00:02]}  Nf2+ {[%clk 0:00:18]} 37. Kg1 {[%clk 0:00:02]}  Nh3+ {[%clk 0:00:17]} 38. Kh1 {[%clk 0:00:02]}  Nf4 {[%clk 0:00:15]} 39. N1xd3 {[%clk 0:00:00]}  cxd3 {[%clk 0:00:14]} 0-1


[Site "https://www.chess.com"]

[Event "Titled Tuesday Blitz August 1 Early 2023"]
[White "Carlsen, Magnus"]
[Black "Kamsky, Gata"]
[WhiteFideId "1503014"]
[BlackFideId "2000024"]
[WhiteElo "3250"]
[BlackElo "2990"]
[Result "1-0"]
[Round "6"]
[TimeControl "180+1"]
[Date "2023.08.01"]
[WhiteClock "0:00:47"]
[BlackClock "0:00:00"]
[Board "1"]

1. d4 {[%clk 0:03:00]}  d5 {[%clk 0:02:58]} 2. Nf3 {[%clk 0:03:00]}  Nf6 {[%clk 0:02:58]} 3. e3 {[%clk 0:03:00]}  c6 {[%clk 0:02:57]} 4. c4 {[%clk 0:02:52]}  g6 {[%clk 0:02:54]} 5. Nc3 {[%clk 0:02:51]}  Bg7 {[%clk 0:02:54]} 6. Be2 {[%clk 0:02:51]}  O-O {[%clk 0:02:54]} 7. O-O {[%clk 0:02:52]}  a6 {[%clk 0:02:49]} 8. h3 {[%clk 0:02:39]}  c5 {[%clk 0:02:27]} 9. cxd5 {[%clk 0:02:33]}  Nxd5 {[%clk 0:02:25]} 10. e4 {[%clk 0:02:31]}  Nxc3 {[%clk 0:02:25]} 11. bxc3 {[%clk 0:02:32]}  cxd4 {[%clk 0:02:25]} 12. cxd4 {[%clk 0:02:32]}  Nc6 {[%clk 0:02:24]} 13. Be3 {[%clk 0:02:30]}  e6 {[%clk 0:02:19]} 14. Rc1 {[%clk 0:02:30]}  Qa5 {[%clk 0:02:10]} 15. d5 {[%clk 0:02:09]}  exd5 {[%clk 0:02:09]} 16. exd5 {[%clk 0:02:10]}  Ne5 {[%clk 0:01:40]} 17. d6 {[%clk 0:02:08]}  Be6 {[%clk 0:01:30]} 18. Nxe5 {[%clk 0:02:05]}  Qxe5 {[%clk 0:01:29]} 19. Rc5 {[%clk 0:02:04]}  Qb2 {[%clk 0:01:26]} 20. Bf3 {[%clk 0:01:43]}  Rad8 {[%clk 0:01:24]} 21. Qd3 {[%clk 0:01:33]}  b5 {[%clk 0:01:12]} 22. Rd1 {[%clk 0:01:23]}  Qxa2 {[%clk 0:01:08]} 23. Bg5 {[%clk 0:01:08]}  f6 {[%clk 0:00:33]} 24. Be3 {[%clk 0:01:08]}  f5 {[%clk 0:00:30]} 25. Bg5 {[%clk 0:01:03]}  Bf6 {[%clk 0:00:29]} 26. Bxf6 {[%clk 0:01:03]}  Rxf6 {[%clk 0:00:29]} 27. Qd4 {[%clk 0:01:03]}  Rf7 {[%clk 0:00:18]} 28. Qe5 {[%clk 0:01:03]}  Bb3 {[%clk 0:00:14]} 29. Rdc1 {[%clk 0:00:55]}  Qd2 {[%clk 0:00:12]} 30. Rc8 {[%clk 0:00:52]}  Rd7 {[%clk 0:00:07]} 31. R1c7 {[%clk 0:00:48]}  Rxc8 {[%clk 0:00:00]} 32. Rxc8+ {[%clk 0:00:47]} 1-0


[Site "https://www.chess.com"]

[Event "Titled Tuesday Blitz August 1 Early 2023"]
[White "Bok, Benjamin"]
[Black "Ohanyan, Emin"]
[WhiteFideId "1017063"]
[BlackFideId "13312022"]
[WhiteElo "2960"]
[BlackElo "2820"]
[Result "1-0"]
[Round "6"]
[TimeControl "180+1"]
[Date "2023.08.01"]
[WhiteClock "0:00:12"]
[BlackClock "0:00:00"]
[Board "7"]

1. d4 {[%clk 0:03:00]}  Nf6 {[%clk 0:03:00]} 2. c4 {[%clk 0:03:00]}  e6 {[%clk 0:03:00]} 3. Nc3 {[%clk 0:03:00]}  Bb4 {[%clk 0:03:00]} 4. Qc2 {[%clk 0:03:00]}  d5 {[%clk 0:03:00]} 5. a3 {[%clk 0:02:59]}  Bxc3+ {[%clk 0:03:00]} 6. Qxc3 {[%clk 0:03:00]}  O-O {[%clk 0:03:01]} 7. Bg5 {[%clk 0:03:00]}  c5 {[%clk 0:02:54]} 8. dxc5 {[%clk 0:02:59]}  d4 {[%clk 0:02:54]} 9. Qf3 {[%clk 0:03:00]}  Nbd7 {[%clk 0:02:55]} 10. e3 {[%clk 0:02:59]}  h6 {[%clk 0:02:55]} 11. Bxf6 {[%clk 0:02:59]}  Nxf6 {[%clk 0:02:56]} 12. O-O-O {[%clk 0:02:59]}  e5 {[%clk 0:02:57]} 13. Ne2 {[%clk 0:02:59]}  Bg4 {[%clk 0:02:56]} 14. Qg3 {[%clk 0:02:56]}  d3 {[%clk 0:02:57]} 15. f3 {[%clk 0:02:53]}  Rc8 {[%clk 0:02:31]} 16. Nc3 {[%clk 0:02:44]}  e4 {[%clk 0:02:24]} 17. fxg4 {[%clk 0:02:39]}  Rxc5 {[%clk 0:02:24]} 18. h4 {[%clk 0:02:33]}  Rxc4 {[%clk 0:02:23]} 19. g5 {[%clk 0:02:34]}  Rxc3+ {[%clk 0:02:07]} 20. bxc3 {[%clk 0:02:33]}  Qa5 {[%clk 0:02:07]} 21. Kd2 {[%clk 0:02:07]}  Rc8 {[%clk 0:00:40]} 22. Rc1 {[%clk 0:01:34]}  Nd7 {[%clk 0:00:23]} 23. gxh6 {[%clk 0:01:30]}  g6 {[%clk 0:00:24]} 24. Qd6 {[%clk 0:00:35]}  Qf5 {[%clk 0:00:05]} 25. Bxd3 {[%clk 0:00:11]}  exd3 {[%clk 0:00:06]} 26. Rhf1 {[%clk 0:00:11]}  Qg4 {[%clk 0:00:07]} 27. h7+ {[%clk 0:00:11]}  Kh8 {[%clk 0:00:04]} 28. Qd4+ {[%clk 0:00:11]}  Qxd4 {[%clk 0:00:00]} 29. cxd4 {[%clk 0:00:12]} 1-0


[Site "https://www.chess.com"]

[Event "Titled Tuesday Blitz August 1 Early 2023"]
[White "Naroditsky, Daniel"]
[Black "Tristan, Leonardo"]
[WhiteFideId "2026961"]
[BlackFideId "113816"]
[WhiteElo "3102"]
[BlackElo "2787"]
[Result "0-1"]
[Round "6"]
[TimeControl "180+1"]
[Date "2023.08.01"]
[WhiteClock "0:00:51"]
[BlackClock "0:00:16"]
[Board "10"]

1. e4 {[%clk 0:03:00]}  d5 {[%clk 0:03:00]} 2. exd5 {[%clk 0:03:00]}  Qxd5 {[%clk 0:03:01]} 3. Nc3 {[%clk 0:03:00]}  Qa5 {[%clk 0:03:01]} 4. Nf3 {[%clk 0:02:59]}  Nf6 {[%clk 0:03:01]} 5. Bc4 {[%clk 0:02:59]}  Nc6 {[%clk 0:03:01]} 6. d3 {[%clk 0:02:56]}  Bg4 {[%clk 0:02:59]} 7. Bd2 {[%clk 0:02:55]}  Qh5 {[%clk 0:02:59]} 8. h3 {[%clk 0:02:40]}  Nd4 {[%clk 0:02:49]} 9. Nxd4 {[%clk 0:02:28]}  Bxd1 {[%clk 0:02:49]} 10. Rxd1 {[%clk 0:02:29]}  e6 {[%clk 0:02:29]} 11. O-O {[%clk 0:02:28]}  a6 {[%clk 0:02:22]} 12. Rfe1 {[%clk 0:02:26]}  O-O-O {[%clk 0:02:19]} 13. Nf3 {[%clk 0:02:27]}  Bd6 {[%clk 0:02:14]} 14. d4 {[%clk 0:02:27]}  Nd5 {[%clk 0:02:07]} 15. Ne4 {[%clk 0:02:27]}  Bf4 {[%clk 0:02:07]} 16. c3 {[%clk 0:01:51]}  Bxd2 {[%clk 0:02:06]} 17. Rxd2 {[%clk 0:01:52]}  Rhe8 {[%clk 0:01:47]} 18. Ne5 {[%clk 0:01:49]}  f6 {[%clk 0:01:41]} 19. Ng3 {[%clk 0:01:45]}  Qh6 {[%clk 0:01:34]} 20. Nf3 {[%clk 0:01:46]}  Nf4 {[%clk 0:01:27]} 21. Rdd1 {[%clk 0:01:42]}  Qg6 {[%clk 0:01:14]} 22. Re4 {[%clk 0:01:38]}  e5 {[%clk 0:01:08]} 23. Rde1 {[%clk 0:01:36]}  exd4 {[%clk 0:00:54]} 24. Rxf4 {[%clk 0:01:36]}  Rxe1+ {[%clk 0:00:53]} 25. Nxe1 {[%clk 0:01:37]}  Qb1 {[%clk 0:00:53]} 26. Re4 {[%clk 0:01:16]}  d3 {[%clk 0:00:54]} 27. Bxd3 {[%clk 0:01:15]}  Rxd3 {[%clk 0:00:53]} 28. Re8+ {[%clk 0:01:12]}  Rd8 {[%clk 0:00:53]} 29. Re2 {[%clk 0:01:13]}  Rd1 {[%clk 0:00:51]} 30. Kf1 {[%clk 0:01:13]}  Qxa2 {[%clk 0:00:51]} 31. Nf5 {[%clk 0:01:13]}  g6 {[%clk 0:00:44]} 32. Nd4 {[%clk 0:01:11]}  c5 {[%clk 0:00:37]} 33. Ne6 {[%clk 0:01:11]}  b6 {[%clk 0:00:33]} 34. Nf4 {[%clk 0:01:03]}  Qc4 {[%clk 0:00:31]} 35. g3 {[%clk 0:01:00]}  Rb1 {[%clk 0:00:24]} 36. Nd3 {[%clk 0:00:57]}  Rd1 {[%clk 0:00:20]} 37. Nf4 {[%clk 0:00:56]}  g5 {[%clk 0:00:20]} 38. b3 {[%clk 0:00:54]}  Qxb3 {[%clk 0:00:20]} 39. Nh5 {[%clk 0:00:53]}  Qc4 {[%clk 0:00:19]} 40. g4 {[%clk 0:00:50]}  Rd2 {[%clk 0:00:15]} 41. Ng3 {[%clk 0:00:51]}  Rxe2 {[%clk 0:00:16]} 42. Nxe2 {[%clk 0:00:52]}  a5 {[%clk 0:00:16]} 43. Nc2 {[%clk 0:00:52]}  a4 {[%clk 0:00:16]} 44. Ne3 {[%clk 0:00:53]}  Qd3 {[%clk 0:00:15]} 45. Ke1 {[%clk 0:00:51]}  a3 {[%clk 0:00:16]} 0-1


[Site "https://www.chess.com"]